[Event "Titled Tuesday Blitz July 11 Early 2023"]
[White "Seletsky, Grigory"]
[Black "Turzo, Attila"]
[WhiteFideId "14112191"]
[BlackFideId "704954"]
[WhiteElo "2381"]
[BlackElo "2519"]
[Result "0-1"]
[Round "7"]
[TimeControl "180+2"]
[Date "2023.07.11"]
[WhiteClock "0:00:00"]
[BlackClock "0:00:12"]
[Board "110"]

1. c4 {[%clk 0:03:00]}  Nf6 {[%clk 0:02:59]} 2. Nc3 {[%clk 0:02:59]}  g6 {[%clk 0:03:00]} 3. e4 {[%clk 0:02:57]}  d6 {[%clk 0:03:00]} 4. d4 {[%clk 0:02:58]}  Bg7 {[%clk 0:03:01]} 5. f3 {[%clk 0:02:50]}  O-O {[%clk 0:02:56]} 6. Be3 {[%clk 0:02:39]}  b6 {[%clk 0:02:51]} 7. Qd2 {[%clk 0:02:39]}  c5 {[%clk 0:02:51]} 8. Nge2 {[%clk 0:02:34]}  Ba6 {[%clk 0:02:46]} 9. b3 {[%clk 0:02:31]}  Nc6 {[%clk 0:02:45]} 10. d5 {[%clk 0:02:28]}  Ne5 {[%clk 0:02:45]} 11. Rc1 {[%clk 0:02:27]}  e6 {[%clk 0:02:45]} 12. Ng3 {[%clk 0:02:26]}  exd5 {[%clk 0:02:44]} 13. Nxd5 {[%clk 0:02:19]}  Nxd5 {[%clk 0:02:42]} 14. Qxd5 {[%clk 0:02:15]}  Qe7 {[%clk 0:02:39]} 15. Be2 {[%clk 0:02:14]}  Bb7 {[%clk 0:02:28]} 16. Qd2 {[%clk 0:02:13]}  Nc6 {[%clk 0:02:29]} 17. O-O {[%clk 0:02:12]}  Nd4 {[%clk 0:02:27]} 18. Bd3 {[%clk 0:02:11]}  Rae8 {[%clk 0:02:21]} 19. Rce1 {[%clk 0:02:09]}  a6 {[%clk 0:02:06]} 20. Ne2 {[%clk 0:02:07]}  Nxe2+ {[%clk 0:01:43]} 21. Rxe2 {[%clk 0:02:06]}  Bc6 {[%clk 0:01:43]} 22. Rd1 {[%clk 0:02:01]}  b5 {[%clk 0:01:41]} 23. Qa5 {[%clk 0:01:48]}  Qb7 {[%clk 0:01:35]} 24. Bc2 {[%clk 0:01:45]}  Rd8 {[%clk 0:01:25]} 25. Red2 {[%clk 0:01:44]}  Be5 {[%clk 0:01:18]} 26. f4 {[%clk 0:01:31]}  Bg7 {[%clk 0:01:14]} 27. Rxd6 {[%clk 0:01:32]}  Rxd6 {[%clk 0:01:10]} 28. Rxd6 {[%clk 0:01:32]}  Bxe4 {[%clk 0:01:10]} 29. Qd2 {[%clk 0:01:19]}  bxc4 {[%clk 0:01:00]} 30. bxc4 {[%clk 0:01:17]}  Bxc2 {[%clk 0:00:46]} 31. Qxc2 {[%clk 0:01:16]}  Re8 {[%clk 0:00:45]} 32. Bf2 {[%clk 0:01:07]}  Qb4 {[%clk 0:00:43]} 33. g3 {[%clk 0:01:05]}  h5 {[%clk 0:00:37]} 34. Kg2 {[%clk 0:01:02]}  Qb7+ {[%clk 0:00:34]} 35. Rd5 {[%clk 0:01:00]}  h4 {[%clk 0:00:28]} 36. Qd3 {[%clk 0:00:54]}  Bd4 {[%clk 0:00:20]} 37. Bxd4 {[%clk 0:00:40]}  cxd4 {[%clk 0:00:21]} 38. Qxd4 {[%clk 0:00:40]}  Qb1 {[%clk 0:00:20]} 39. Qd2 {[%clk 0:00:20]}  Re1 {[%clk 0:00:16]} 40. Rd8+ {[%clk 0:00:18]}  Kh7 {[%clk 0:00:16]} 41. Qd3 {[%clk 0:00:14]}  Qxa2+ {[%clk 0:00:13]} 42. Kh3 {[%clk 0:00:11]}  Re2 {[%clk 0:00:13]} 43. Kxh4 {[%clk 0:00:09]}  Rxh2+ {[%clk 0:00:13]} 44. Kg4 {[%clk 0:00:07]}  Qg2 {[%clk 0:00:13]} 45. Qd2 {[%clk 0:00:05]}  f5+ {[%clk 0:00:10]} 46. Kg5 {[%clk 0:00:03]}  Qxg3+ {[%clk 0:00:11]} 47. Kf6 {[%clk 0:00:03]}  Rxd2 {[%clk 0:00:11]} 48. Rxd2 {[%clk 0:00:02]}  Qc3+ {[%clk 0:00:12]} 49. Kf7 {[%clk 0:00:00]}  Qxd2 {[%clk 0:00:12]} 0-1


[Site "https://www.chess.com"]

[Event "Titled Tuesday Blitz July 11 Early 2023"]
[White "Rodriguez Santiago, Jaime"]
[Black "Chor, Kevin"]
[WhiteFideId "3100898"]
[BlackFideId "2090740"]
[WhiteElo "2367"]
[BlackElo "2517"]
[Result "1-0"]
[Round "7"]
[TimeControl "180+2"]
[Date "2023.07.11"]
[WhiteClock "0:00:05"]
[BlackClock "0:00:02"]
[Board "111"]

1. c4 {[%clk 0:03:00]}  c5 {[%clk 0:02:55]} 2. Nc3 {[%clk 0:03:00]}  Nc6 {[%clk 0:02:55]} 3. g3 {[%clk 0:03:00]}  Nf6 {[%clk 0:02:55]} 4. Bg2 {[%clk 0:03:01]}  g6 {[%clk 0:02:53]} 5. e4 {[%clk 0:03:00]}  Bg7 {[%clk 0:02:53]} 6. Nge2 {[%clk 0:03:01]}  O-O {[%clk 0:02:52]} 7. O-O {[%clk 0:03:01]}  Rb8 {[%clk 0:02:52]} 8. d3 {[%clk 0:03:01]}  a6 {[%clk 0:02:45]} 9. a4 {[%clk 0:03:00]}  Ne8 {[%clk 0:02:42]} 10. Be3 {[%clk 0:02:59]}  d6 {[%clk 0:02:42]} 11. h3 {[%clk 0:02:47]}  e5 {[%clk 0:02:34]} 12. Nd5 {[%clk 0:02:40]}  Nc7 {[%clk 0:02:31]} 13. Nec3 {[%clk 0:02:38]}  Nd4 {[%clk 0:02:21]} 14. Nxc7 {[%clk 0:02:35]}  Qxc7 {[%clk 0:02:22]} 15. Nd5 {[%clk 0:02:35]}  Qd8 {[%clk 0:02:18]} 16. Rb1 {[%clk 0:02:34]}  b5 {[%clk 0:02:17]} 17. axb5 {[%clk 0:02:28]}  axb5 {[%clk 0:02:18]} 18. b4 {[%clk 0:02:25]}  Ba6 {[%clk 0:02:08]} 19. cxb5 {[%clk 0:02:15]}  Bxb5 {[%clk 0:01:58]} 20. bxc5 {[%clk 0:02:13]}  dxc5 {[%clk 0:01:59]} 21. Qd2 {[%clk 0:01:57]}  Bd7 {[%clk 0:01:52]} 22. Bg5 {[%clk 0:01:48]}  f6 {[%clk 0:01:47]} 23. Be3 {[%clk 0:01:37]}  Bxh3 {[%clk 0:01:41]} 24. Qa2 {[%clk 0:01:23]}  Be6 {[%clk 0:01:32]} 25. Bxd4 {[%clk 0:01:22]}  cxd4 {[%clk 0:01:27]} 26. Rxb8 {[%clk 0:01:22]}  Qxb8 {[%clk 0:01:27]} 27. Ne7+ {[%clk 0:01:21]}  Kf7 {[%clk 0:01:27]} 28. Nd5 {[%clk 0:01:15]}  Qa8 {[%clk 0:01:16]} 29. Qd2 {[%clk 0:00:49]}  Rb8 {[%clk 0:01:06]} 30. Rc1 {[%clk 0:00:48]}  Rc8 {[%clk 0:01:02]} 31. Rb1 {[%clk 0:00:46]}  Qc6 {[%clk 0:00:58]} 32. Kh2 {[%clk 0:00:32]}  h5 {[%clk 0:00:26]} 33. Qa5 {[%clk 0:00:22]}  Ra8 {[%clk 0:00:10]} 34. Qb4 {[%clk 0:00:22]}  Re8 {[%clk 0:00:09]} 35. Qa3 {[%clk 0:00:18]}  Bf8 {[%clk 0:00:09]} 36. Qa7+ {[%clk 0:00:16]}  Be7 {[%clk 0:00:09]} 37. Rb7 {[%clk 0:00:16]}  Qd6 {[%clk 0:00:08]} 38. Rb6 {[%clk 0:00:15]}  Qc5 {[%clk 0:00:07]} 39. Nc7 {[%clk 0:00:15]}  Bd7 {[%clk 0:00:04]} 40. Nd5 {[%clk 0:00:12]}  Be6 {[%clk 0:00:04]} 41. Qb7 {[%clk 0:00:10]}  Bxd5 {[%clk 0:00:04]} 42. exd5 {[%clk 0:00:10]}  Kf8 {[%clk 0:00:05]} 43. d6 {[%clk 0:00:10]}  Bxd6 {[%clk 0:00:05]} 44. Bd5 {[%clk 0:00:10]}  Re7 {[%clk 0:00:05]} 45. Qa8+ {[%clk 0:00:09]}  Re8 {[%clk 0:00:05]} 46. Qb7 {[%clk 0:00:09]}  Qc7 {[%clk 0:00:05]} 47. Qa6 {[%clk 0:00:06]}  Be7 {[%clk 0:00:05]} 48. Rxf6+ {[%clk 0:00:06]}  Kg7 {[%clk 0:00:02]} 49. Rxg6+ {[%clk 0:00:06]}  Kf8 {[%clk 0:00:02]} 50. Rg8# {[%clk 0:00:05]} 1-0


[Site "https://www.chess.com"]

[Event "Titled Tuesday Blitz July 11 Early 2023"]
[White "Osmak, Yuliia"]
[Black "Onslow, Alfie"]
[WhiteFideId "14101602"]
[BlackFideId "436976"]
[WhiteElo "2507"]
[BlackElo "2277"]
[Result "1-0"]
[Round "7"]
[TimeControl "180+2"]
[Date "2023.07.11"]
[WhiteClock "0:01:07"]
[BlackClock "0:00:11"]
[Board "117"]

1. e4 {[%clk 0:03:00]}  c5 {[%clk 0:03:00]} 2. Nf3 {[%clk 0:02:59]}  Nc6 {[%clk 0:02:59]} 3. Bb5 {[%clk 0:02:57]}  g6 {[%clk 0:02:56]} 4. O-O {[%clk 0:02:55]}  Bg7 {[%clk 0:02:56]} 5. Bxc6 {[%clk 0:02:55]}  dxc6 {[%clk 0:02:56]} 6. d3 {[%clk 0:02:54]}  Nf6 {[%clk 0:02:51]} 7. h3 {[%clk 0:02:50]}  O-O {[%clk 0:02:51]} 8. Bd2 {[%clk 0:02:46]}  b5 {[%clk 0:02:44]} 9. a4 {[%clk 0:02:42]}  Qc7 {[%clk 0:02:33]} 10. Bc3 {[%clk 0:02:41]}  Rd8 {[%clk 0:02:23]} 11. Nbd2 {[%clk 0:02:38]}  a6 {[%clk 0:02:12]} 12. axb5 {[%clk 0:02:35]}  cxb5 {[%clk 0:02:11]} 13. Ba5 {[%clk 0:02:35]}  Qd7 {[%clk 0:02:03]} 14. Bxd8 {[%clk 0:02:34]}  Qxd8 {[%clk 0:02:03]} 15. Ra2 {[%clk 0:02:26]}  Nd7 {[%clk 0:02:02]} 16. Qe2 {[%clk 0:02:21]}  Nb6 {[%clk 0:01:56]} 17. e5 {[%clk 0:02:13]}  Be6 {[%clk 0:01:56]} 18. b3 {[%clk 0:02:12]}  a5 {[%clk 0:01:56]} 19. Raa1 {[%clk 0:02:05]}  Qc7 {[%clk 0:01:52]} 20. Rfe1 {[%clk 0:02:04]}  Nd5 {[%clk 0:01:51]} 21. Ne4 {[%clk 0:01:58]}  Bf5 {[%clk 0:01:38]} 22. c4 {[%clk 0:01:55]}  Bxe4 {[%clk 0:01:31]} 23. Qxe4 {[%clk 0:01:52]}  Nb6 {[%clk 0:01:27]} 24. cxb5 {[%clk 0:01:48]}  Qd7 {[%clk 0:01:25]} 25. Qc6 {[%clk 0:01:45]}  Qxc6 {[%clk 0:01:16]} 26. bxc6 {[%clk 0:01:46]}  e6 {[%clk 0:01:02]} 27. Rec1 {[%clk 0:01:44]}  Bf8 {[%clk 0:01:03]} 28. Nd2 {[%clk 0:01:38]}  Nd5 {[%clk 0:00:46]} 29. Ne4 {[%clk 0:01:31]}  Nf4 {[%clk 0:00:42]} 30. Rd1 {[%clk 0:01:18]}  Ne2+ {[%clk 0:00:31]} 31. Kf1 {[%clk 0:01:18]}  Nd4 {[%clk 0:00:31]} 32. c7 {[%clk 0:01:09]}  Nxb3 {[%clk 0:00:27]} 33. Rab1 {[%clk 0:01:07]}  a4 {[%clk 0:00:27]} 34. Nd6 {[%clk 0:01:06]}  Bxd6 {[%clk 0:00:11]} 35. exd6 {[%clk 0:01:07]} 1-0


[Site "https://www.chess.com"]

[Event "Titled Tuesday Blitz July 11 Early 2023"]
[White "Sailer, Mike"]
[Black "Womacka, Mathias"]
[WhiteFideId "2012901"]
[BlackFideId "4611390"]
[WhiteElo "2161"]
[BlackElo "2492"]
[Result "0-1"]
[Round "7"]
[TimeControl "180+2"]
[Date "2023.07.11"]
[WhiteClock "0:00:58"]
[BlackClock "0:01:50"]
[Board "122"]

1. d4 {[%clk 0:03:00]}  Nf6 {[%clk 0:02:58]} 2. Nc3 {[%clk 0:02:58]}  d5 {[%clk 0:02:57]} 3. Bf4 {[%clk 0:02:57]}  a6 {[%clk 0:02:57]} 4. e3 {[%clk 0:02:57]}  e6 {[%clk 0:02:57]} 5. Nf3 {[%clk 0:02:56]}  c5 {[%clk 0:02:57]} 6. Ne5 {[%clk 0:02:54]}  Nc6 {[%clk 0:02:56]} 7. g4 {[%clk 0:02:54]}  cxd4 {[%clk 0:02:53]} 8. exd4 {[%clk 0:02:53]}  Bb4 {[%clk 0:02:52]} 9. Bg2 {[%clk 0:02:43]}  Ne4 {[%clk 0:02:36]} 10. Bxe4 {[%clk 0:02:39]}  dxe4 {[%clk 0:02:37]} 11. Nxc6 {[%clk 0:02:37]}  bxc6 {[%clk 0:02:36]} 12. Qe2 {[%clk 0:02:27]}  Qxd4 {[%clk 0:02:32]} 13. Rd1 {[%clk 0:01:56]}  Bxc3+ {[%clk 0:02:30]} 14. bxc3 {[%clk 0:01:56]}  Qxc3+ {[%clk 0:02:30]} 15. Bd2 {[%clk 0:01:55]}  Qxc2 {[%clk 0:02:22]} 16. Rc1 {[%clk 0:01:40]}  Qd3 {[%clk 0:02:17]} 17. Rxc6 {[%clk 0:01:34]}  O-O {[%clk 0:02:08]} 18. Be3 {[%clk 0:01:15]}  e5 {[%clk 0:01:56]} 19. Qb2 {[%clk 0:01:03]}  Bxg4 {[%clk 0:01:52]} 20. Rc3 {[%clk 0:00:58]}  Qd1# {[%clk 0:01:50]} 0-1


[Site "https://www.chess.com"]

[Event "Titled Tuesday Blitz July 11 Early 2023"]
[White "Melikhov, Evgeny V."]
[Black "Liyanage, Ranindu Dilshan"]
[WhiteFideId "4122046"]
[BlackFideId "9915834"]
[WhiteElo "2422"]
[BlackElo "2636"]
[Result "0-1"]
[Round "7"]
[TimeControl "180+2"]
[Date "2023.07.11"]
[WhiteClock "0:00:15"]
[BlackClock "0:00:48"]
[Board "124"]

1. d4 {[%clk 0:03:00]}  Nf6 {[%clk 0:03:00]} 2. c4 {[%clk 0:03:00]}  e6 {[%clk 0:03:00]} 3. Nc3 {[%clk 0:03:01]}  d5 {[%clk 0:03:01]} 4. cxd5 {[%clk 0:03:00]}  exd5 {[%clk 0:03:02]} 5. Bg5 {[%clk 0:03:00]}  Bb4 {[%clk 0:03:02]} 6. e3 {[%clk 0:02:59]}  h6 {[%clk 0:03:03]} 7. Bh4 {[%clk 0:02:53]}  g5 {[%clk 0:03:03]} 8. Bg3 {[%clk 0:02:53]}  Ne4 {[%clk 0:03:03]} 9. Ne2 {[%clk 0:02:48]}  h5 {[%clk 0:03:02]} 10. f3 {[%clk 0:02:46]}  Nxg3 {[%clk 0:02:58]} 11. Nxg3 {[%clk 0:02:45]}  Qe7 {[%clk 0:02:57]} 12. Qd3 {[%clk 0:02:08]}  h4 {[%clk 0:02:54]} 13. Nf5 {[%clk 0:02:07]}  Bxf5 {[%clk 0:02:43]} 14. Qxf5 {[%clk 0:02:07]}  Qxe3+ {[%clk 0:02:43]} 15. Be2 {[%clk 0:02:07]}  Nc6 {[%clk 0:02:41]} 16. Rd1 {[%clk 0:01:46]}  Nxd4 {[%clk 0:02:34]} 17. Rxd4 {[%clk 0:01:44]}  Qxd4 {[%clk 0:02:35]} 18. Qxg5 {[%clk 0:01:35]}  c6 {[%clk 0:02:15]} 19. a3 {[%clk 0:01:02]}  Bxc3+ {[%clk 0:02:12]} 20. bxc3 {[%clk 0:01:02]}  Qxc3+ {[%clk 0:02:01]} 21. Kd1 {[%clk 0:00:48]}  Qa1+ {[%clk 0:01:18]} 22. Kd2 {[%clk 0:00:48]}  Qb2+ {[%clk 0:01:14]} 23. Kd3 {[%clk 0:00:44]}  Qxa3+ {[%clk 0:01:08]} 24. Kc2 {[%clk 0:00:44]}  Qe7 {[%clk 0:01:09]} 25. Qd2 {[%clk 0:00:37]}  O-O-O {[%clk 0:01:08]} 26. Re1 {[%clk 0:00:37]}  Qc5+ {[%clk 0:01:06]} 27. Kb2 {[%clk 0:00:34]}  Rhe8 {[%clk 0:01:06]} 28. Bd3 {[%clk 0:00:33]}  Qd4+ {[%clk 0:01:04]} 29. Kc2 {[%clk 0:00:32]}  Qc5+ {[%clk 0:01:04]} 30. Kb2 {[%clk 0:00:32]}  Rxe1 {[%clk 0:01:02]} 31. Qxe1 {[%clk 0:00:32]}  Qd4+ {[%clk 0:00:55]} 32. Kc2 {[%clk 0:00:32]}  c5 {[%clk 0:00:55]} 33. Qe7 {[%clk 0:00:29]}  Qa4+ {[%clk 0:00:52]} 34. Kc1 {[%clk 0:00:26]}  Qd7 {[%clk 0:00:51]} 35. Qe5 {[%clk 0:00:23]}  Qc7 {[%clk 0:00:49]} 36. Bf5+ {[%clk 0:00:22]}  Kb8 {[%clk 0:00:49]} 37. Qf6 {[%clk 0:00:22]}  d4 {[%clk 0:00:48]} 38. Bd3 {[%clk 0:00:15]}  c4 {[%clk 0:00:48]} 0-1


[Site "https://www.chess.com"]

[Event "Titled Tuesday Blitz July 11 Early 2023"]
[White "Fule, Simon"]
[Black "Bobkov, Vadim"]
[WhiteFideId "787515"]
[BlackFideId "34110876"]
[WhiteElo "2405"]
[BlackElo "2621"]
[Result "1/2-1/2"]
[Round "7"]
[TimeControl "180+2"]
[Date "2023.07.11"]
[WhiteClock "0:01:07"]
[BlackClock "0:01:53"]
[Board "125"]

1. e4 {[%clk 0:03:00]}  c5 {[%clk 0:02:58]} 2. Nf3 {[%clk 0:03:00]}  g6 {[%clk 0:02:58]} 3. d4 {[%clk 0:03:00]}  cxd4 {[%clk 0:02:59]} 4. Nxd4 {[%clk 0:03:01]}  Nc6 {[%clk 0:02:59]} 5. c4 {[%clk 0:03:00]}  d6 {[%clk 0:02:00]} 6. Nc3 {[%clk 0:02:48]}  Bg7 {[%clk 0:01:59]} 7. Be3 {[%clk 0:02:44]}  Qb6 {[%clk 0:01:59]} 8. Nd5 {[%clk 0:02:19]}  Qxb2 {[%clk 0:01:54]} 9. Rb1 {[%clk 0:02:15]}  Qxa2 {[%clk 0:01:54]} 10. Ra1 {[%clk 0:01:07]}  Qb2 {[%clk 0:01:52]} 11. Rb1 {[%clk 0:01:07]}  Qa2 {[%clk 0:01:52]} 12. Ra1 {[%clk 0:01:07]}  Qb2 {[%clk 0:01:53]} 13. Rb1 {[%clk 0:01:07]}  Qa2 {[%clk 0:01:53]} 1/2-1/2


[Site "https://www.chess.com"]

[Event "Titled Tuesday Blitz July 11 Early 2023"]
[White "Janaszak, Dawid"]
[Black "Herman, Matthew"]
[WhiteFideId "1119206"]
[BlackFideId "2028964"]
[WhiteElo "2571"]
[BlackElo "2401"]
[Result "0-1"]
[Round "7"]
[TimeControl "180+2"]
[Date "2023.07.11"]
[WhiteClock "0:00:59"]
[BlackClock "0:00:10"]
[Board "126"]

1. d4 {[%clk 0:02:59]}  Nf6 {[%clk 0:02:58]} 2. Nc3 {[%clk 0:02:59]}  d5 {[%clk 0:02:58]} 3. Bf4 {[%clk 0:02:58]}  a6 {[%clk 0:02:58]} 4. e3 {[%clk 0:02:57]}  Bf5 {[%clk 0:02:58]} 5. f3 {[%clk 0:02:55]}  h5 {[%clk 0:02:55]} 6. Bd3 {[%clk 0:02:53]}  Bxd3 {[%clk 0:02:55]} 7. cxd3 {[%clk 0:02:54]}  e6 {[%clk 0:02:55]} 8. Qb3 {[%clk 0:02:49]}  b6 {[%clk 0:02:45]} 9. Rc1 {[%clk 0:02:47]}  Bd6 {[%clk 0:02:45]} 10. Nge2 {[%clk 0:02:47]}  h4 {[%clk 0:02:44]} 11. O-O {[%clk 0:02:46]}  Bxf4 {[%clk 0:02:33]} 12. Nxf4 {[%clk 0:02:45]}  Qd6 {[%clk 0:02:33]} 13. h3 {[%clk 0:02:39]}  Nbd7 {[%clk 0:02:15]} 14. Rf2 {[%clk 0:02:36]}  O-O {[%clk 0:02:11]} 15. Qd1 {[%clk 0:02:25]}  c5 {[%clk 0:02:03]} 16. dxc5 {[%clk 0:02:23]}  bxc5 {[%clk 0:01:58]} 17. Rfc2 {[%clk 0:02:08]}  d4 {[%clk 0:01:51]} 18. Ne4 {[%clk 0:01:49]}  Qe5 {[%clk 0:01:47]} 19. Qe1 {[%clk 0:01:33]}  dxe3 {[%clk 0:01:23]} 20. Qxh4 {[%clk 0:01:33]}  Nxe4 {[%clk 0:01:06]} 21. fxe4 {[%clk 0:01:33]}  g5 {[%clk 0:01:04]} 22. Qh5 {[%clk 0:01:20]}  Qxf4 {[%clk 0:00:40]} 23. Rf1 {[%clk 0:01:20]}  Qe5 {[%clk 0:00:30]} 24. Rf3 {[%clk 0:01:13]}  Qg7 {[%clk 0:00:13]} 25. Rg3 {[%clk 0:01:11]}  f6 {[%clk 0:00:13]} 26. Qg4 {[%clk 0:01:10]}  f5 {[%clk 0:00:11]} 27. exf5 {[%clk 0:01:08]}  exf5 {[%clk 0:00:12]} 28. Qc4+ {[%clk 0:01:05]}  Rf7 {[%clk 0:00:12]} 29. Qd5 {[%clk 0:01:04]}  Re8 {[%clk 0:00:11]} 30. h4 {[%clk 0:01:02]}  g4 {[%clk 0:00:11]} 31. Rc4 {[%clk 0:00:59]}  e2 {[%clk 0:00:10]} 0-1


[Site "https://www.chess.com"]

[Event "Titled Tuesday Blitz July 11 Early 2023"]
[White "Arat, Ufuk Sezen"]
[Black "cedchass2006"]
[WhiteFideId "6309089"]
[WhiteElo "2568"]
[BlackElo "2401"]
[Result "1-0"]
[Round "7"]
[TimeControl "180+2"]
[Date "2023.07.11"]
[WhiteClock "0:00:50"]
[BlackClock "0:00:00"]
[Board "127"]

1. d4 {[%clk 0:02:54]}  Nf6 {[%clk 0:02:59]} 2. Nd2 {[%clk 0:02:53]}  d5 {[%clk 0:02:57]} 3. Ngf3 {[%clk 0:02:53]}  e6 {[%clk 0:02:54]} 4. g3 {[%clk 0:02:52]}  Be7 {[%clk 0:02:51]} 5. Bg2 {[%clk 0:02:52]}  O-O {[%clk 0:02:51]} 6. O-O {[%clk 0:02:53]}  c5 {[%clk 0:02:46]} 7. c3 {[%clk 0:02:53]}  Nc6 {[%clk 0:02:46]} 8. a4 {[%clk 0:02:52]}  b6 {[%clk 0:02:45]} 9. Re1 {[%clk 0:02:50]}  Bb7 {[%clk 0:02:42]} 10. h4 {[%clk 0:02:44]}  Rc8 {[%clk 0:02:38]} 11. Nb3 {[%clk 0:02:40]}  cxd4 {[%clk 0:02:29]} 12. Nfxd4 {[%clk 0:02:39]}  Nxd4 {[%clk 0:02:28]} 13. Nxd4 {[%clk 0:02:36]}  Ne4 {[%clk 0:02:05]} 14. Nf3 {[%clk 0:02:26]}  Bf6 {[%clk 0:02:04]} 15. Bf4 {[%clk 0:02:25]}  Nxc3 {[%clk 0:01:45]} 16. bxc3 {[%clk 0:02:19]}  Bxc3 {[%clk 0:01:45]} 17. Rb1 {[%clk 0:02:16]}  Bxe1 {[%clk 0:01:45]} 18. Qxe1 {[%clk 0:02:17]}  Qd7 {[%clk 0:01:19]} 19. a5 {[%clk 0:02:15]}  bxa5 {[%clk 0:01:19]} 20. Qxa5 {[%clk 0:02:13]}  Ba8 {[%clk 0:00:55]} 21. Ne5 {[%clk 0:02:07]}  Qe7 {[%clk 0:00:55]} 22. Ra1 {[%clk 0:02:03]}  f6 {[%clk 0:00:31]} 23. Nd3 {[%clk 0:01:56]}  e5 {[%clk 0:00:22]} 24. Bd2 {[%clk 0:01:52]}  Rfd8 {[%clk 0:00:18]} 25. Qxa7 {[%clk 0:01:51]}  Qxa7 {[%clk 0:00:19]} 26. Rxa7 {[%clk 0:01:50]}  d4 {[%clk 0:00:18]} 27. Ba5 {[%clk 0:01:34]}  Re8 {[%clk 0:00:15]} 28. Bh3 {[%clk 0:01:32]}  Rc2 {[%clk 0:00:10]} 29. Bd7 {[%clk 0:01:32]}  Rb8 {[%clk 0:00:07]} 30. Be6+ {[%clk 0:01:32]}  Kh8 {[%clk 0:00:06]} 31. h5 {[%clk 0:01:27]}  Rxe2 {[%clk 0:00:05]} 32. Kh2 {[%clk 0:01:06]}  Bf3 {[%clk 0:00:03]} 33. h6 {[%clk 0:01:01]}  gxh6 {[%clk 0:00:02]} 34. Bb4 {[%clk 0:00:52]}  Rxb4 {[%clk 0:00:00]} 35. Ra8+ {[%clk 0:00:50]} 1-0


[Site "https://www.chess.com"]

[Event "Titled Tuesday Blitz July 11 Early 2023"]
[White "Villuendas Valero, Adrian"]
[Black "Kim, Sergey"]
[WhiteFideId "2262460"]
[BlackFideId "13700570"]
[WhiteElo "2393"]
[BlackElo "2565"]
[Result "0-1"]
[Round "7"]
[TimeControl "180+2"]
[Date "2023.07.11"]
[WhiteClock "0:00:00"]
[BlackClock "0:00:44"]
[Board "128"]

1. e4 {[%clk 0:03:00]}  e5 {[%clk 0:03:00]} 2. Nf3 {[%clk 0:03:00]}  Nc6 {[%clk 0:03:00]} 3. Bc4 {[%clk 0:02:57]}  Bc5 {[%clk 0:02:59]} 4. c3 {[%clk 0:02:57]}  Nf6 {[%clk 0:02:58]} 5. d3 {[%clk 0:02:56]}  d6 {[%clk 0:02:58]} 6. Nbd2 {[%clk 0:02:54]}  a6 {[%clk 0:02:58]} 7. a4 {[%clk 0:02:53]}  Ba7 {[%clk 0:02:59]} 8. O-O {[%clk 0:02:52]}  O-O {[%clk 0:02:59]} 9. Re1 {[%clk 0:02:52]}  Nh5 {[%clk 0:02:58]} 10. Nf1 {[%clk 0:02:49]}  Qf6 {[%clk 0:02:58]} 11. Ng3 {[%clk 0:02:45]}  Nf4 {[%clk 0:02:58]} 12. d4 {[%clk 0:02:36]}  Bg4 {[%clk 0:02:56]} 13. d5 {[%clk 0:02:31]}  Ne7 {[%clk 0:02:56]} 14. Be3 {[%clk 0:02:18]}  Neg6 {[%clk 0:02:55]} 15. Bxa7 {[%clk 0:02:15]}  Rxa7 {[%clk 0:02:54]} 16. Be2 {[%clk 0:01:59]}  Nxe2+ {[%clk 0:02:52]} 17. Qxe2 {[%clk 0:01:58]}  Bxf3 {[%clk 0:02:11]} 18. Qxf3 {[%clk 0:01:54]}  Qxf3 {[%clk 0:02:11]} 19. gxf3 {[%clk 0:01:54]}  Nh4 {[%clk 0:02:07]} 20. Re3 {[%clk 0:01:52]}  g6 {[%clk 0:02:07]} 21. Ne2 {[%clk 0:01:48]}  Raa8 {[%clk 0:02:04]} 22. f4 {[%clk 0:01:46]}  f6 {[%clk 0:01:53]} 23. Rh3 {[%clk 0:01:36]}  g5 {[%clk 0:01:53]} 24. fxg5 {[%clk 0:01:32]}  fxg5 {[%clk 0:01:53]} 25. Rg3 {[%clk 0:01:27]}  h6 {[%clk 0:01:52]} 26. c4 {[%clk 0:01:16]}  a5 {[%clk 0:01:50]} 27. Raa3 {[%clk 0:01:13]}  Rf7 {[%clk 0:01:46]} 28. c5 {[%clk 0:01:03]}  Raf8 {[%clk 0:01:43]} 29. f3 {[%clk 0:00:37]}  Nxf3+ {[%clk 0:01:40]} 30. Kg2 {[%clk 0:00:37]}  Nh4+ {[%clk 0:01:38]} 31. Kh3 {[%clk 0:00:37]}  dxc5 {[%clk 0:01:31]} 32. Rab3 {[%clk 0:00:31]}  b6 {[%clk 0:01:31]} 33. d6 {[%clk 0:00:31]}  cxd6 {[%clk 0:01:27]} 34. Rxb6 {[%clk 0:00:31]}  Rf2 {[%clk 0:01:25]} 35. Nc3 {[%clk 0:00:29]}  Nf3 {[%clk 0:01:06]} 36. Rg2 {[%clk 0:00:25]}  Rf1 {[%clk 0:00:54]} 37. Rxd6 {[%clk 0:00:22]}  h5 {[%clk 0:00:54]} 38. Rg6+ {[%clk 0:00:18]}  Kh7 {[%clk 0:00:53]} 39. R6xg5 {[%clk 0:00:17]}  Nxg5+ {[%clk 0:00:52]} 40. Rxg5 {[%clk 0:00:18]}  Kh6 {[%clk 0:00:49]} 41. Rxe5 {[%clk 0:00:19]}  R1f2 {[%clk 0:00:47]} 42. Rxc5 {[%clk 0:00:15]}  Rxb2 {[%clk 0:00:45]} 43. Rf5 {[%clk 0:00:13]}  Rxf5 {[%clk 0:00:44]} 44. exf5 {[%clk 0:00:00]}  Rb3 {[%clk 0:00:44]} 0-1


[Site "https://www.chess.com"]